fUSD/lending_fUSD_20260627
["ID","MTS","AMOUNT","RATE_DAILY","PERIOD"]
[426526766,1782538246000,-573.42,0.000372,7]
[426526770,1782538246000,-524.4381418,0.000372,120]
[426526758,1782538246000,-500.0,0.00037199,120]
[426526809,1782538246000,-500.0,0.00037215,120]
[426526789,1782538246000,-925.54,0.00037215,7]
[426526805,1782538246000,-250.04,0.00037215,120]
[426526834,1782538246000,-661.28,0.00037215,120]
[426526838,1782538246000,-661.28,0.00037215,120]
[426526840,1782538246000,-604.16,0.00037215,120]
[426526848,1782538246000,-604.16,0.00037215,120]
[426526849,1782538246000,-604.16,0.00037215,120]
[426526841,1782538246000,-604.16,0.00037215,120]
[426526842,1782538246000,-604.16,0.00037215,120]
[426526839,1782538246000,-661.33065149,0.00037215,120]
[426526846,1782538246000,-604.16,0.00037215,120]
[426526844,1782538246000,-604.16,0.00037215,120]
[426526847,1782538246000,-604.16,0.00037215,120]
[426526845,1782538246000,-604.16,0.00037215,120]
[426526861,1782538246000,-243.4002016,0.00037215,120]
[426526851,1782538246000,-604.16,0.00037215,120]
[426526850,1782538246000,-604.16,0.00037215,120]
[426526855,1782538246000,-500.0,0.00037215,120]
[426526854,1782538246000,-500.0,0.00037215,120]
[426526859,1782538246000,-500.0,0.00037215,120]
[426526853,1782538246000,-500.0,0.00037215,120]
[426526852,1782538246000,-604.32,0.00037215,120]
[426526857,1782538246000,-500.0,0.00037215,120]
[426526858,1782538246000,-500.0,0.00037215,120]
[426526856,1782538246000,-500.0,0.00037215,120]
[426526860,1782538246000,-500.0,0.00037215,120]
[426526862,1782538246000,-1919.93,0.00037215,7]
[426526864,1782538246000,-1919.93,0.00037215,7]
[426526811,1782538246000,-500.0,0.00037215,120]
[426526832,1782538246000,-661.28,0.00037215,120]
[426526835,1782538246000,-661.28,0.00037215,120]
[426526843,1782538246000,-604.16,0.00037215,120]
[426526833,1782538246000,-661.28,0.00037215,120]
[426526836,1782538246000,-661.28,0.00037215,120]
[426526810,1782538246000,-500.0,0.00037215,120]
[426526807,1782538246000,-500.0,0.00037215,2]
[426526800,1782538246000,-500.0,0.00037215,120]
[426526808,1782538246000,-521.36271652,0.00037215,2]
[426526803,1782538246000,-500.0,0.00037215,120]
[426526818,1782538246000,-562.52,0.00037215,120]
[426526815,1782538246000,-562.52,0.00037215,120]
[426526820,1782538246000,-562.52,0.00037215,120]
[426526825,1782538246000,-562.66766551,0.00037215,120]
[426526816,1782538246000,-562.52,0.00037215,120]
[426526863,1782538246000,-1919.93,0.00037215,7]
[426526814,1782538246000,-562.52,0.00037215,120]
[426526819,1782538246000,-562.52,0.00037215,120]
[426526821,1782538246000,-562.52,0.00037215,120]
[426526824,1782538246000,-562.52,0.00037215,120]
[426526830,1782538246000,-661.28,0.00037215,120]
[426526826,1782538246000,-500.0,0.00037215,120]
[426526829,1782538246000,-661.28,0.00037215,120]
[426526828,1782538246000,-661.28,0.00037215,120]
[426526827,1782538246000,-661.28,0.00037215,120]
[426526831,1782538246000,-661.28,0.00037215,120]
[426526822,1782538246000,-562.52,0.00037215,120]
[426526837,1782538246000,-661.28,0.00037215,120]
[426526817,1782538246000,-562.52,0.00037215,120]
[426526802,1782538246000,-500.0,0.00037215,120]
[426526823,1782538246000,-562.52,0.00037215,120]
[426526813,1782538246000,-562.52,0.00037215,120]
[426526890,1782538247000,-1820.74,0.00037215,7]
[426526891,1782538247000,-1820.86991608,0.00037215,7]
[426526888,1782538247000,-1820.74,0.00037215,7]
[426526886,1782538247000,-1820.74,0.00037215,7]
[426526876,1782538247000,-1820.74,0.00037215,7]
[426526884,1782538247000,-1820.74,0.00037215,7]
[426526881,1782538247000,-1820.74,0.00037215,7]
[426526885,1782538247000,-1820.74,0.00037215,7]
[426526882,1782538247000,-1820.74,0.00037215,7]
[426526880,1782538247000,-1820.74,0.00037215,7]
[426526878,1782538247000,-1820.74,0.00037215,7]
[426526883,1782538247000,-1820.74,0.00037215,7]
[426526887,1782538247000,-1820.74,0.00037215,7]
[426526865,1782538247000,-1919.93,0.00037215,7]
[426526877,1782538247000,-1820.74,0.00037215,7]
[426526875,1782538247000,-1919.94948661,0.00037215,7]
[426526874,1782538247000,-1919.93,0.00037215,7]
[426526872,1782538247000,-1919.93,0.00037215,7]
[426526871,1782538247000,-1919.93,0.00037215,7]
[426526870,1782538247000,-1919.93,0.00037215,7]
[426526868,1782538247000,-1919.93,0.00037215,7]
[426526869,1782538247000,-1919.93,0.00037215,7]
[426526867,1782538247000,-1919.93,0.00037215,7]
[426526873,1782538247000,-1919.93,0.00037215,7]
[426526866,1782538247000,-1919.93,0.00037215,7]
[426526889,1782538247000,-1820.74,0.00037215,7]
[426526879,1782538247000,-1820.74,0.00037215,7]
[426526892,1782538247000,-524.71227394,0.00037215,60]
[426526904,1782538247000,-500.0,0.00026606,2]
[426526895,1782538247000,-2726.10776756,0.00037215,120]
[426526893,1782538247000,-65203.29187668,0.00037215,120]
[426526919,1782538247000,-157.44,0.00035803,7]
[426526918,1782538247000,-513.68419468,0.00035615,120]
[426526914,1782538247000,-252.19471911,0.0003488,7]
[426526912,1782538247000,-500.0,0.00034879,120]
[426526921,1782538247000,-131320.04703265,0.00037215,120]
[426526915,1782538247000,-157.44,0.00035424,2]
[426526913,1782538247000,-151.0,0.0003488,7]
[426526920,1782538247000,-157.44,0.00036182,30]
[426526917,1782538247000,-151.0,0.00035455,7]
[426526916,1782538247000,-500.0,0.00035454,120]
[426526911,1782538247000,-151.0,0.00034828,7]
[426526910,1782538247000,-627.57493983,0.00034734,2]
[426526922,1782538247000,-204781.79268793,0.00037215,120]
[426526909,1782538247000,-199.40771084,0.00034,2]
[426526894,1782538247000,-151.0,0.00034828,7]
[426526896,1782538247000,-256.41677732,0.00037215,120]
[426526906,1782538247000,-151.0,0.00031507,7]
[426526899,1782538247000,-137670.4609792,0.00037215,120]
[426526901,1782538247000,-10985.18591629,0.00037215,120]
[426526900,1782538247000,-70899.32315044,0.00037215,120]
[426526897,1782538247000,-1219.4810845,0.00037215,120]
[426526898,1782538247000,-500.0,0.00014798,2]
[426526905,1782538247000,-500.0,0.00026606,2]
[426526907,1782538247000,-151.0,0.00032878,7]
[426526908,1782538247000,-500.0,0.00033568,120]
[426526903,1782538247000,-177.12,0.00024658,2]
[426526902,1782538247000,-733.3777153,0.00037215,120]
[426526929,1782538248000,-300.89532763,0.00035445,10]
[426526928,1782538248000,-3501.85717142,0.00035445,10]
[426526926,1782538248000,-2824.04573061,0.00035445,10]
[426526927,1782538248000,-642.10071989,0.00035445,10]
[426526925,1782538248000,-154.86,0.00035426,30]
[426526924,1782538248000,-156.85,0.00035425,30]
[426526923,1782538248000,-175.62,0.00035424,30]
[426526930,1782538253000,500.0,0.00037302,120]
[426526932,1782538253000,639.65964918,0.00037302,120]
[426526931,1782538253000,500.0,0.00037302,120]
[426526933,1782538324000,3067.776863,0.00037302,120]
[426526939,1782538510000,-226.169,0.00014405,2]
[426526938,1782538510000,-1983.768,0.00014405,2]
[426526935,1782538510000,-253.636447,0.00013976,2]
[426526937,1782538510000,-314.48,0.00014331,2]
[426526934,1782538510000,-314.48,0.00013964,2]
[426526936,1782538510000,-314.48,0.00014056,2]
[426526947,1782538521000,-500.0,0.00014698,2]
[426526946,1782538521000,-584.2282987,0.00014698,2]
[426526945,1782538521000,-442.99660936,0.00014698,2]
[426526944,1782538521000,-300.0,0.00014698,2]
[426526940,1782538521000,-6239.19643893,0.00014599,2]
[426526942,1782538521000,-194.85915141,0.00014691,2]
[426526941,1782538521000,-153.44718913,0.00014599,2]
[426526949,1782538521000,-251.37455751,0.00014698,2]
[426526943,1782538521000,-485.70253468,0.00014691,2]
[426526952,1782538521000,-150.0,0.00014698,2]
[426526948,1782538521000,-416.36891267,0.00014698,2]
[426526953,1782538521000,-500.0,0.00014698,2]
[426526959,1782538521000,-500.0,0.00014698,2]
[426526960,1782538521000,-1500000.0,0.00014699,2]
[426526958,1782538521000,-500.0,0.00014698,2]
[426526956,1782538521000,-500.0,0.00014698,2]
[426526951,1782538521000,-530.6380032,0.00014698,2]
[426526955,1782538521000,-500.0,0.00014698,2]
[426526954,1782538521000,-500.0,0.00014698,2]
[426526950,1782538521000,-500.0,0.00014698,2]
[426526961,1782538521000,-916544.17485741,0.00014699,2]
[426526957,1782538521000,-500.0,0.00014698,2]
[426526969,1782538717000,-3830.29748165,0.00014499,2]
[426526968,1782538717000,-164.70251835,0.00014499,2]
[426526967,1782538717000,-151.0,0.00014499,2]
[426526966,1782538717000,-151.0,0.00014499,2]
[426526965,1782538717000,-151.0,0.00014499,2]
[426526963,1782538717000,-151.0,0.00014499,2]
[426526964,1782538717000,-151.0,0.00014499,2]
[426526962,1782538717000,-250.0,0.00014,2]
[426526970,1782538718000,-3370.9437713,0.00014499,2]
[426526971,1782538718000,-649.86457905,0.00014499,2]
[426526974,1782538718000,-175.96219026,0.00014598,2]
[426526973,1782538718000,-500.0,0.00014598,2]
[426526975,1782538718000,-130.61957615,0.00014598,2]
[426526972,1782538718000,-172.60988324,0.00014598,2]
[426526983,1782538719000,-500.0,0.00014598,2]
[426526977,1782538719000,-628.45416302,0.00014598,2]
[426526976,1782538719000,-369.38042385,0.00014598,2]
[426526978,1782538719000,-453.03151502,0.00014598,2]
[426526979,1782538719000,-500.0,0.00014598,2]
[426526980,1782538719000,-500.0,0.00014598,2]
[426526982,1782538719000,-500.0,0.00014598,2]
[426526985,1782538719000,-500.0,0.00014598,2]
[426526981,1782538719000,-500.0,0.00014598,2]
[426526986,1782538719000,-49.13389811,0.00014598,2]
[426526987,1782538719000,6511.00152377,0.00012,16]
[426526988,1782538719000,-450.86610189,0.00014598,2]
[426526989,1782538719000,-500.0,0.00014598,2]
[426526990,1782538719000,-500.0,0.00014598,2]
[426526991,1782538719000,-500.0,0.00014598,2]
[426526992,1782538719000,-500.0,0.00014598,2]
[426526993,1782538719000,-500.0,0.00014598,2]
[426526984,1782538719000,-500.0,0.00014598,2]
[426526994,1782538720000,-500.0,0.00014598,2]
[426526996,1782538720000,-500.0,0.00014598,2]
[426526995,1782538720000,-500.0,0.00014598,2]
[426526998,1782538720000,-49.13389811,0.00014598,2]
[426526999,1782538720000,-450.86610189,0.00014598,2]
[426526997,1782538720000,-500.0,0.00014598,2]
[426527000,1782538720000,-414.3511376,0.00014598,2]
[426527003,1782538720000,-500.0,0.00014598,2]
[426527002,1782538720000,-500.0,0.00014598,2]
[426527005,1782538720000,-500.0,0.00014598,2]
[426527004,1782538720000,-500.0,0.00014598,2]
[426527006,1782538720000,-1634.78276051,0.00014599,2]
[426527001,1782538720000,-500.0,0.00014598,2]
[426527008,1782538721000,-5000.0,0.00014599,2]
[426527007,1782538721000,-5000.0,0.00014599,2]
[426527009,1782538722000,-5000.0,0.00014599,2]
[426527011,1782538722000,-5000.0,0.00014599,2]
[426527010,1782538722000,-5000.0,0.00014599,2]
[426527013,1782538723000,-5000.0,0.00014599,2]
[426527012,1782538723000,-5000.0,0.00014599,2]
[426527016,1782538724000,-5000.0,0.00014599,2]
[426527015,1782538724000,-5000.0,0.00014599,2]
[426527014,1782538724000,-5000.0,0.00014599,2]
[426527017,1782538725000,-5000.0,0.00014599,2]
[426527018,1782538725000,-5000.0,0.00014599,2]
[426527019,1782538725000,-5000.0,0.00014599,2]
[426527022,1782538726000,-5000.0,0.00014599,2]
[426527021,1782538726000,-5000.0,0.00014599,2]
[426527020,1782538726000,-5000.0,0.00014599,2]
[426527024,1782538727000,-5000.0,0.00014599,2]
[426527023,1782538727000,-5000.0,0.00014599,2]
[426527027,1782538728000,-5000.0,0.00014599,2]
[426527026,1782538728000,-5000.0,0.00014599,2]
[426527025,1782538728000,-5000.0,0.00014599,2]
[426527029,1782538729000,-5000.0,0.00014599,2]
[426527028,1782538729000,-5000.0,0.00014599,2]
[426527032,1782538730000,-5000.0,0.00014599,2]
[426527031,1782538730000,-5000.0,0.00014599,2]
[426527030,1782538730000,-5000.0,0.00014599,2]
[426527033,1782538731000,-5000.0,0.00014599,2]
[426527035,1782538732000,-5000.0,0.00014599,2]
[426527034,1782538732000,-5000.0,0.00014599,2]
[426527036,1782538733000,-5000.0,0.00014599,2]
[426527037,1782538733000,-5000.0,0.00014599,2]
[426527038,1782538734000,-5000.0,0.00014599,2]
[426527039,1782538734000,-5000.0,0.00014599,2]
[426527040,1782538735000,-5000.0,0.00014599,2]
[426527042,1782538736000,-5000.0,0.00014599,2]
[426527041,1782538736000,-5000.0,0.00014599,2]
[426527043,1782538737000,-5000.0,0.00014599,2]
[426527046,1782538738000,-5000.0,0.00014599,2]
[426527045,1782538738000,-5000.0,0.00014599,2]
[426527044,1782538738000,-5000.0,0.00014599,2]
[426527047,1782538739000,-5000.0,0.00014599,2]
[426527048,1782538740000,-5000.0,0.00014599,2]
[426527049,1782538741000,-5000.0,0.00014599,2]
[426527050,1782538742000,-5000.0,0.00014599,2]
[426527051,1782538743000,-5000.0,0.00014599,2]
[426527052,1782538744000,-5000.0,0.00014599,2]
[426527053,1782538745000,-5000.0,0.00014599,2]
[426527054,1782538746000,-5000.0,0.00014599,2]
[426527055,1782538747000,-5000.0,0.00014599,2]
[426527056,1782538754000,-2050.0,0.00014599,2]
[426527058,1782539058000,500.0,0.00037308,120]
[426527057,1782539058000,500.0,0.00037308,120]
[426527061,1782539059000,500.0,0.00037308,120]
[426527060,1782539059000,500.0,0.00037308,120]
[426527059,1782539059000,500.0,0.00037308,120]
[426527062,1782539060000,506.70869739,0.00037308,120]
[426527063,1782539158000,353.18547844,0.00037308,120]
[426527064,1782539167000,-317.61,0.00012462,2]
[426527065,1782539167000,-150.0,0.00013118,2]
[426527067,1782539167000,-150.0,0.00013118,2]
[426527069,1782539167000,-150.0,0.00013118,2]
[426527068,1782539167000,-150.0,0.00013118,2]
[426527066,1782539167000,-150.0,0.00013118,2]
[426527071,1782539167000,-490.53,0.0001332,2]
[426527073,1782539167000,-150.0,0.00013409,2]
[426527072,1782539167000,-150.0,0.00013409,2]
[426527074,1782539167000,-150.0,0.00013588,2]
[426527076,1782539167000,-150.0,0.00013701,2]
[426527075,1782539167000,-228.53,0.00013688,2]
[426527077,1782539167000,-150.0,0.00013701,2]
[426527078,1782539167000,-317.61,0.00013774,2]
[426527070,1782539167000,-297.0,0.00013264,2]
[426527079,1782539168000,-161.4,0.00013791,2]
[426527082,1782539168000,-210.93,0.00013861,2]
[426527081,1782539168000,-150.0,0.00013847,2]
[426527080,1782539168000,-2455.866902,0.00013799,2]
[426527083,1782539168000,-320.73,0.00013869,2]
[426527084,1782539168000,-250.0,0.00013879,2]
[426527086,1782539168000,-200.0,0.00013895,2]
[426527087,1782539168000,-320.73,0.0001391,2]
[426527088,1782539168000,-261.22672262,0.00013987,2]
[426527089,1782539168000,-151.30404061,0.00013987,2]
[426527090,1782539168000,-150.0,0.00013992,2]
[426527091,1782539168000,-150.0,0.00013992,2]
[426527085,1782539168000,-500.0,0.00013879,2]
[426527092,1782539170000,250.0,0.00013708,2]
[426527094,1782539176000,-168.85,0.00014099,2]
[426527095,1782539176000,-320.73,0.00014234,2]
[426527093,1782539176000,-320.73,0.00014031,2]
[426527098,1782539176000,-150.0,0.00014498,2]
[426527097,1782539176000,-150.0,0.00014284,2]
[426527099,1782539176000,-56.22233477,0.00014499,2]
[426527096,1782539176000,-150.0,0.00014284,2]
[426527100,1782539236000,-1145.0,0.00013929,2]
[426527115,1782539431000,-84.64047375,0.00013246,2]
[426527121,1782539431000,-1000.0,0.00013406,2]
[426527118,1782539431000,-320.83,0.00013297,2]
[426527120,1782539431000,-141.75796792,0.00013371,2]
[426527116,1782539431000,-364.04952625,0.00013246,2]
[426527119,1782539431000,-179.07203208,0.00013371,2]
[426527117,1782539431000,-2598.69,0.0001329,2]
[426527114,1782539431000,-320.83,0.0001324,2]
[426527107,1782539431000,-166.66,0.00012937,2]
[426527111,1782539431000,-320.83,0.00013199,2]
[426527109,1782539431000,-320.83,0.00013174,2]
[426527112,1782539431000,-142.99699177,0.00013221,2]
[426527110,1782539431000,-166.66,0.00013198,2]
[426527108,1782539431000,-320.83,0.00013166,2]
[426527106,1782539431000,-166.66,0.00012675,2]
[426527123,1782539431000,-320.83,0.00013461,2]
[426527105,1782539431000,-166.66,0.00012414,2]
[426527113,1782539431000,-148.93300823,0.00013221,2]
[426527122,1782539431000,-166.66,0.00013459,2]
[426527130,1782539431000,-237.62071757,0.00013759,2]
[426527131,1782539431000,-5000.0,0.00013761,2]
[426527157,1782539431000,-3339.5418447,0.0001448,2]
[426527140,1782539431000,-150.0,0.00013996,2]
[426527137,1782539431000,-320.83,0.00013986,2]
[426527141,1782539431000,-150.0,0.00014135,2]
[426527154,1782539431000,-7884.08755561,0.00014398,2]
[426527126,1782539431000,-320.83,0.00013691,2]
[426527148,1782539431000,-320.83,0.00014347,2]
[426527150,1782539431000,-14554.4463,0.00014398,2]
[426527146,1782539431000,-500.0,0.00014212,2]
[426527152,1782539431000,-1064.11036417,0.00014398,2]
[426527134,1782539431000,-513.03,0.00013929,2]
[426527132,1782539431000,-320.83,0.0001383,2]
[426527125,1782539431000,-320.83,0.00013568,2]
[426527124,1782539431000,-682.54734299,0.000135,2]
[426527129,1782539431000,-166.66,0.00013721,2]
[426527127,1782539431000,-164.0,0.000137,2]
[426527128,1782539431000,-2259.78,0.000137,2]
[426527144,1782539431000,-320.83,0.00014158,2]
[426527159,1782539432000,-500.0,0.00014483,2]
[426527163,1782539432000,-248.0,0.00014498,2]
[426527162,1782539432000,-150.0,0.00014495,2]
[426527165,1782539432000,-1254.41808677,0.00014498,2]
[426527161,1782539432000,-2858.4968079,0.00014495,2]
[426527164,1782539432000,-114516.72899467,0.00014498,2]
[426527160,1782539432000,-303.36390796,0.00014483,2]
[426527197,1782539437000,-204.69078989,0.00014497,2]
[426527203,1782539437000,-500.0,0.00014497,2]
[426527198,1782539437000,-241.41730519,0.00014497,2]
[426527201,1782539437000,-511.72409969,0.00014497,2]
[426527202,1782539437000,-555.37648914,0.00014497,2]
[426527200,1782539437000,-500.0,0.00014497,2]
[426527199,1782539437000,-500.0,0.00014497,2]
[426527296,1782539438000,-500.0,0.00014598,2]
[426527236,1782539438000,-500.0,0.00014497,2]
[426527242,1782539438000,-203.74276008,0.00014497,2]
[426527249,1782539438000,-500.0,0.00014497,2]
[426527240,1782539438000,-500.0,0.00014497,2]
[426527247,1782539438000,-500.0,0.00014497,2]
[426527251,1782539438000,-500.0,0.00014497,2]
[426527254,1782539438000,-500.0,0.00014497,2]
[426527300,1782539438000,-500.0,0.00014598,2]
[426527256,1782539438000,-500.0,0.00014497,2]
[426527269,1782539438000,-8945.95349619,0.00014499,2]
[426527271,1782539438000,-1106.1259938,0.00014499,2]
[426527277,1782539438000,-320.83,0.00014552,2]
[426527260,1782539438000,-500.0,0.00014497,2]
[426527273,1782539438000,-165.92122324,0.00014499,2]
[426527275,1782539438000,-320.73,0.00014518,2]
[426527264,1782539438000,-150.0,0.00014498,2]
[426527262,1782539438000,-954597.62851856,0.00014498,2]
[426527279,1782539438000,-150.0,0.00014575,2]
[426527280,1782539438000,-150.0,0.00014575,2]
[426527266,1782539438000,-166.0,0.00014498,2]
[426527267,1782539438000,-3192.2912,0.00014499,2]
[426527282,1782539438000,-150.0,0.00014575,2]
[426527284,1782539438000,-150.0,0.00014575,2]
[426527286,1782539438000,-173.03810331,0.00014588,2]
[426527288,1782539438000,-500.0,0.00014598,2]
[426527290,1782539438000,-1178.00238394,0.00014598,2]
[426527294,1782539438000,-5826.41327979,0.00014598,2]
[426527292,1782539438000,-1155.58666498,0.00014598,2]
[426527238,1782539438000,-500.0,0.00014497,2]
[426527258,1782539438000,-500.0,0.00014497,2]
[426527243,1782539438000,-500.0,0.00014497,2]
[426527233,1782539438000,-500.0,0.00014497,2]
[426527205,1782539438000,-500.0,0.00014497,2]
[426527204,1782539438000,-626.57399898,0.00014497,2]
[426527206,1782539438000,-501.98147291,0.00014497,2]
[426527208,1782539438000,-500.0,0.00014497,2]
[426527207,1782539438000,-279.82561576,0.00014497,2]
[426527209,1782539438000,-500.0,0.00014497,2]
[426527218,1782539438000,-500.0,0.00014497,2]
[426527213,1782539438000,-500.0,0.00014497,2]
[426527210,1782539438000,-500.0,0.00014497,2]
[426527211,1782539438000,-549.87219813,0.00014497,2]
[426527216,1782539438000,-500.0,0.00014497,2]
[426527217,1782539438000,-500.0,0.00014497,2]
[426527212,1782539438000,-500.0,0.00014497,2]
[426527215,1782539438000,-500.0,0.00014497,2]
[426527252,1782539438000,-500.0,0.00014497,2]
[426527214,1782539438000,-500.0,0.00014497,2]
[426527230,1782539438000,-500.0,0.00014497,2]
[426527231,1782539438000,-500.0,0.00014497,2]
[426527222,1782539438000,-500.0,0.00014497,2]
[426527226,1782539438000,-500.0,0.00014497,2]
[426527225,1782539438000,-500.0,0.00014497,2]
[426527228,1782539438000,-500.0,0.00014497,2]
[426527219,1782539438000,-500.0,0.00014497,2]
[426527223,1782539438000,-500.0,0.00014497,2]
[426527227,1782539438000,-500.0,0.00014497,2]
[426527221,1782539438000,-500.0,0.00014497,2]
[426527224,1782539438000,-500.0,0.00014497,2]
[426527229,1782539438000,-500.0,0.00014497,2]
[426527245,1782539438000,-500.0,0.00014497,2]
[426527235,1782539438000,-500.0,0.00014497,2]
[426527220,1782539438000,-500.0,0.00014497,2]
[426527304,1782539438000,-500.0,0.00014598,2]
[426527342,1782539438000,-500.0,0.00014598,2]
[426527305,1782539438000,-500.0,0.00014598,2]
[426527383,1782539438000,-151.0,0.00014599,2]
[426527372,1782539438000,-626.15,0.00014598,2]
[426527381,1782539438000,-1251315.21723949,0.00014599,2]
[426527366,1782539438000,-500.0,0.00014598,2]
[426527376,1782539438000,-626.15,0.00014598,2]
[426527370,1782539438000,-500.0,0.00014598,2]
[426527368,1782539438000,-626.15,0.00014598,2]
[426527385,1782539438000,-150.0,0.00014599,2]
[426527387,1782539438000,-25540.8172862,0.00014599,2]
[426527391,1782539438000,-239.81642095,0.00014698,2]
[426527399,1782539438000,-500.0,0.00014698,2]
[426527389,1782539438000,-3231.1600096,0.00014599,2]
[426527401,1782539438000,-500.0,0.00014698,2]
[426527397,1782539438000,-300.0,0.00014698,2]
[426527377,1782539438000,-626.15,0.00014598,2]
[426527393,1782539438000,-151.0,0.00014698,2]
[426527406,1782539438000,-816.49,0.00014698,2]
[426527395,1782539438000,-300.0,0.00014698,2]
[426527408,1782539438000,-816.49,0.00014698,2]
[426527405,1782539438000,-656.57,0.00014698,2]
[426527410,1782539438000,-626.15,0.00014698,2]
[426527415,1782539438000,-200.0,0.00014699,2]
[426527425,1782539438000,-500.0,0.00014798,2]
[426527427,1782539438000,-325.62330576,0.00014798,2]
[426527419,1782539438000,-314.48,0.00014791,2]
[426527429,1782539438000,-500.0,0.00014798,2]
[426527421,1782539438000,-656.57,0.00014797,2]
[426527423,1782539438000,-505.40601264,0.00014798,2]
[426527417,1782539438000,-2600.0,0.000147,5]
[426527302,1782539438000,-500.0,0.00014598,2]
[426527403,1782539438000,-656.57,0.00014698,2]
[426527379,1782539438000,-626.15,0.00014598,2]
[426527413,1782539438000,-626.15,0.00014698,2]
[426527364,1782539438000,-500.0,0.00014598,2]
[426527374,1782539438000,-626.15,0.00014598,2]
[426527298,1782539438000,-500.0,0.00014598,2]
[426527308,1782539438000,-152.0,0.00014598,2]
[426527307,1782539438000,-152.0,0.00014598,2]
[426527310,1782539438000,-248.4178774,0.00014598,2]
[426527319,1782539438000,-500.0,0.00014598,2]
[426527312,1782539438000,-232.818,0.00014598,2]
[426527317,1782539438000,-500.0,0.00014598,2]
[426527313,1782539438000,-2187.805,0.00014598,2]
[426527331,1782539438000,-656.57,0.00014598,2]
[426527334,1782539438000,-656.57,0.00014598,2]
[426527323,1782539438000,-500.0,0.00014598,2]
[426527332,1782539438000,-656.57,0.00014598,2]
[426527329,1782539438000,-656.57,0.00014598,2]
[426527325,1782539438000,-163.83,0.00014598,2]
[426527315,1782539438000,-424.12596773,0.00014598,2]
[426527327,1782539438000,-656.57,0.00014598,2]
[426527321,1782539438000,-500.0,0.00014598,2]
[426527360,1782539438000,-816.49,0.00014598,2]
[426527362,1782539438000,-500.0,0.00014598,2]
[426527344,1782539438000,-500.0,0.00014598,2]
[426527350,1782539438000,-816.49,0.00014598,2]
[426527338,1782539438000,-500.0,0.00014598,2]
[426527358,1782539438000,-816.49,0.00014598,2]
[426527340,1782539438000,-500.0,0.00014598,2]
[426527346,1782539438000,-500.0,0.00014598,2]
[426527352,1782539438000,-816.49,0.00014598,2]
[426527356,1782539438000,-816.49,0.00014598,2]
[426527348,1782539438000,-169.10387934,0.00014598,2]
[426527354,1782539438000,-816.49,0.00014598,2]
[426527336,1782539438000,-500.0,0.00014598,2]
[426527490,1782539439000,-500.0,0.00014798,2]
[426527514,1782539439000,-500.0,0.00014798,2]
[426527504,1782539439000,-500.0,0.00014798,2]
[426527501,1782539439000,-500.0,0.00014798,2]
[426527499,1782539439000,-500.0,0.00014798,2]
[426527496,1782539439000,-500.0,0.00014798,2]
[426527502,1782539439000,-500.0,0.00014798,2]
[426527485,1782539439000,-501.45512008,0.00014798,2]
[426527500,1782539439000,-500.0,0.00014798,2]
[426527492,1782539439000,-500.0,0.00014798,2]
[426527498,1782539439000,-500.0,0.00014798,2]
[426527503,1782539439000,-629.42950447,0.00014798,2]
[426527508,1782539439000,-500.0,0.00014798,2]
[426527507,1782539439000,-500.0,0.00014798,2]